[Event "Live Chess"]
[Site "Chess.com"]
[Date "2011.01.28"]
[Round "-"]
[White "paleoliberal"]
[Black "hipposcottimus"]
[Result "0-1"]
[CurrentPosition "3r2k1/pp4pp/5r2/7q/8/2P1p3/P1P3Q1/6RK w - -"]
[Timezone "UTC"]
[ECO "C47"]
[ECOUrl "https://www.chess.com/openings/Four-Knights-Game-Italian-Variation"]
[UTCDate "2011.01.28"]
[UTCTime "22:13:39"]
[WhiteElo "1432"]
[BlackElo "1595"]
[TimeControl "60"]
[Termination "hipposcottimus won on time"]
[StartTime "22:13:39"]
[EndDate "2011.01.28"]
[EndTime "22:15:39"]
[Link "https://www.chess.com/game/live/92406673"]

1. e4 {[%clk 0:01:00]} 1... e5 {[%clk 0:01:00]} 2. Nf3 {[%clk 0:00:59.3]} 2... Nc6 {[%clk 0:00:59.2]} 3. Bc4 {[%clk 0:00:59.2]} 3... Nf6 {[%clk 0:00:58]} 4. Nc3 {[%clk 0:00:58.6]} 4... d5 {[%clk 0:00:54.8]} 5. exd5 {[%clk 0:00:56.9]} 5... Na5 {[%clk 0:00:54.3]} 6. d6 {[%clk 0:00:48.8]} 6... Nxc4 {[%clk 0:00:50.3]} 7. dxc7 {[%clk 0:00:47.2]} 7... Qxc7 {[%clk 0:00:48.2]} 8. d4 {[%clk 0:00:46.4]} 8... e4 {[%clk 0:00:46.9]} 9. Bg5 {[%clk 0:00:42.2]} 9... Be7 {[%clk 0:00:45.3]} 10. Ne5 {[%clk 0:00:39.7]} 10... Nxe5 {[%clk 0:00:40.9]} 11. dxe5 {[%clk 0:00:37.3]} 11... Qxe5 {[%clk 0:00:40.6]} 12. Bxf6 {[%clk 0:00:34.9]} 12... Bxf6 {[%clk 0:00:39.6]} 13. O-O {[%clk 0:00:31.6]} 13... O-O {[%clk 0:00:38.6]} 14. Re1 {[%clk 0:00:30.8]} 14... Bf5 {[%clk 0:00:34]} 15. g4 {[%clk 0:00:29.8]} 15... Bg6 {[%clk 0:00:28.4]} 16. f4 {[%clk 0:00:28.3]} 16... Qxf4 {[%clk 0:00:25.2]} 17. Rf1 {[%clk 0:00:27.2]} 17... Qe3+ {[%clk 0:00:21.6]} 18. Kh1 {[%clk 0:00:24.3]} 18... Bxc3 {[%clk 0:00:17.6]} 19. bxc3 {[%clk 0:00:22.2]} 19... Qg5 {[%clk 0:00:17.3]} 20. Rg1 {[%clk 0:00:19.5]} 20... Qe5 {[%clk 0:00:16.6]} 21. h4 {[%clk 0:00:17.6]} 21... Rad8 {[%clk 0:00:16.2]} 22. Qe2 {[%clk 0:00:14.7]} 22... f6 {[%clk 0:00:15.8]} 23. h5 {[%clk 0:00:13.5]} 23... Bf7 {[%clk 0:00:15.7]} 24. g5 {[%clk 0:00:12.2]} 24... Bd5 {[%clk 0:00:15]} 25. gxf6 {[%clk 0:00:09.7]} 25... e3+ {[%clk 0:00:14.3]} 26. Rg2 {[%clk 0:00:06.4]} 26... Bxg2+ {[%clk 0:00:13]} 27. Qxg2 {[%clk 0:00:05.4]} 27... Rxf6 {[%clk 0:00:12.7]} 28. Rg1 {[%clk 0:00:03]} 28... Qxh5+ {[%clk 0:00:11.7]} 0-1

[Event "Live Chess"]
[Site "Chess.com"]
[Date "2011.01.28"]
[Round "-"]
[White "hipposcottimus"]
[Black "paleoliberal"]
[Result "1-0"]
[CurrentPosition "r2q1b1r/ppp2p1p/3k1P2/1N1PN1p1/2B2nb1/4Q3/PPP2PPP/R1B1K2R b KQ -"]
[Timezone "UTC"]
[ECO "C50"]
[ECOUrl "https://www.chess.com/openings/Italian-Game"]
[UTCDate "2011.01.28"]
[UTCTime "22:11:57"]
[WhiteElo "1590"]
[BlackElo "1437"]
[TimeControl "60"]
[Termination "hipposcottimus won by checkmate"]
[StartTime "22:11:57"]
[EndDate "2011.01.28"]
[EndTime "22:13:06"]
[Link "https://www.chess.com/game/live/92406311"]

1. e4 {[%clk 0:01:00]} 1... e5 {[%clk 0:01:00]} 2. Nf3 {[%clk 0:00:59.4]} 2... Nc6 {[%clk 0:00:59.6]} 3. Bc4 {[%clk 0:00:59.1]} 3... d5 {[%clk 0:00:58.6]} 4. exd5 {[%clk 0:00:55.8]} 4... Nce7 {[%clk 0:00:57.9]} 5. Nc3 {[%clk 0:00:52.4]} 5... Nf6 {[%clk 0:00:56.6]} 6. d3 {[%clk 0:00:51.4]} 6... e4 {[%clk 0:00:56]} 7. dxe4 {[%clk 0:00:50.3]} 7... Bg4 {[%clk 0:00:55]} 8. Qd3 {[%clk 0:00:48.7]} 8... Ng6 {[%clk 0:00:50.1]} 9. e5 {[%clk 0:00:47.9]} 9... Nf4 {[%clk 0:00:48.4]} 10. Qe3 {[%clk 0:00:41.6]} 10... g5 {[%clk 0:00:40.4]} 11. exf6+ {[%clk 0:00:40.7]} 11... Kd7 {[%clk 0:00:28.2]} 12. Ne5+ {[%clk 0:00:39.7]} 12... Kd6 {[%clk 0:00:24.3]} 13. Nb5# {[%clk 0:00:33.9]} 1-0

[Event "Live Chess"]
[Site "Chess.com"]
[Date "2011.01.28"]
[Round "-"]
[White "paleoliberal"]
[Black "hipposcottimus"]
[Result "1-0"]
[CurrentPosition "r7/pp6/2N1b1pp/k4p2/P1QB4/3P4/1PP2PPP/R5K1 b - -"]
[Timezone "UTC"]
[ECO "C55"]
[ECOUrl "https://www.chess.com/openings/Italian-Game-Two-Knights-Defense-4.O-O"]
[UTCDate "2011.01.28"]
[UTCTime "22:09:34"]
[WhiteElo "1442"]
[BlackElo "1585"]
[TimeControl "60"]
[Termination "paleoliberal won on time"]
[StartTime "22:09:34"]
[EndDate "2011.01.28"]
[EndTime "22:11:42"]
[Link "https://www.chess.com/game/live/92405636"]

1. e4 {[%clk 0:01:00]} 1... e5 {[%clk 0:01:00]} 2. Nf3 {[%clk 0:00:59.9]} 2... Nc6 {[%clk 0:00:59.2]} 3. Bc4 {[%clk 0:00:59.8]} 3... Nf6 {[%clk 0:00:58.7]} 4. O-O {[%clk 0:00:58.2]} 4... d5 {[%clk 0:00:58.2]} 5. Bd3 {[%clk 0:00:56.8]} 5... dxe4 {[%clk 0:00:56.7]} 6. Bxe4 {[%clk 0:00:52.9]} 6... Nxe4 {[%clk 0:00:55.1]} 7. Re1 {[%clk 0:00:52.8]} 7... f5 {[%clk 0:00:54.3]} 8. d3 {[%clk 0:00:51]} 8... Nd6 {[%clk 0:00:52.1]} 9. Nxe5 {[%clk 0:00:50]} 9... Be7 {[%clk 0:00:49.7]} 10. Qh5+ {[%clk 0:00:45.1]} 10... g6 {[%clk 0:00:47.5]} 11. Qh6 {[%clk 0:00:42.4]} 11... Nxe5 {[%clk 0:00:44.3]} 12. Rxe5 {[%clk 0:00:40.5]} 12... Nf7 {[%clk 0:00:42.3]} 13. Qg7 {[%clk 0:00:35.9]} 13... h6 {[%clk 0:00:35.4]} 14. Nc3 {[%clk 0:00:33.6]} 14... Qd6 {[%clk 0:00:17.5]} 15. Bf4 {[%clk 0:00:32.3]} 15... Nxe5 {[%clk 0:00:15.5]} 16. Bxe5 {[%clk 0:00:30.3]} 16... Bf8 {[%clk 0:00:15.2]} 17. Qxh8 {[%clk 0:00:24.5]} 17... Qd5 {[%clk 0:00:14]} 18. Nxd5 {[%clk 0:00:19.1]} 18... Kd7 {[%clk 0:00:11]} 19. Qf6 {[%clk 0:00:16.6]} 19... Be7 {[%clk 0:00:08.2]} 20. Qxe7+ {[%clk 0:00:15]} 20... Kc6 {[%clk 0:00:07.5]} 21. Nb4+ {[%clk 0:00:13.1]} 21... Kb5 {[%clk 0:00:07.1]} 22. Qe6 {[%clk 0:00:09.5]} 22... c6 {[%clk 0:00:06.1]} 23. Qc4+ {[%clk 0:00:08.7]} 23... Kb6 {[%clk 0:00:04.5]} 24. Bd4+ {[%clk 0:00:08.6]} 24... Ka5 {[%clk 0:00:03.1]} 25. a4 {[%clk 0:00:06]} 25... Be6 {[%clk 0:00:00.3]} 26. Nxc6+ {[%clk 0:00:05.1]} 1-0

[Event "Live Chess"]
[Site "Chess.com"]
[Date "2011.01.28"]
[Round "-"]
[White "hipposcottimus"]
[Black "Scrubdoo"]
[Result "1-0"]
[CurrentPosition "3r2k1/4bpp1/p1b1p2p/1p2P3/4N3/3r4/PP2R2P/1K2NR2 b - -"]
[Timezone "UTC"]
[ECO "C02"]
[ECOUrl "https://www.chess.com/openings/French-Defense-Advance-Variation-3...c5"]
[UTCDate "2011.01.28"]
[UTCTime "22:06:52"]
[WhiteElo "1596"]
[BlackElo "1668"]
[TimeControl "60"]
[Termination "hipposcottimus won on time"]
[StartTime "22:06:52"]
[EndDate "2011.01.28"]
[EndTime "22:08:53"]
[Link "https://www.chess.com/game/live/92404861"]

1. e4 {[%clk 0:01:00]} 1... e6 {[%clk 0:01:00]} 2. d4 {[%clk 0:00:59.3]} 2... d5 {[%clk 0:00:56.9]} 3. e5 {[%clk 0:00:58.9]} 3... c5 {[%clk 0:00:53.9]} 4. c4 {[%clk 0:00:56.7]} 4... dxc4 {[%clk 0:00:50.3]} 5. Be3 {[%clk 0:00:51.3]} 5... cxd4 {[%clk 0:00:49.7]} 6. Bxd4 {[%clk 0:00:49.8]} 6... Nc6 {[%clk 0:00:47.5]} 7. Nf3 {[%clk 0:00:46.1]} 7... Nxd4 {[%clk 0:00:44.9]} 8. Nxd4 {[%clk 0:00:45.8]} 8... Bc5 {[%clk 0:00:44.3]} 9. Nf3 {[%clk 0:00:41.1]} 9... Qxd1+ {[%clk 0:00:41.9]} 10. Kxd1 {[%clk 0:00:40.9]} 10... Ne7 {[%clk 0:00:40.3]} 11. Nc3 {[%clk 0:00:40.6]} 11... Bd7 {[%clk 0:00:39.1]} 12. Bxc4 {[%clk 0:00:39.7]} 12... Bc6 {[%clk 0:00:37.5]} 13. Kc2 {[%clk 0:00:38.6]} 13... a6 {[%clk 0:00:33.8]} 14. Rad1 {[%clk 0:00:38.1]} 14... b5 {[%clk 0:00:32.7]} 15. Be2 {[%clk 0:00:36.7]} 15... Bxf2 {[%clk 0:00:29]} 16. Kb1 {[%clk 0:00:33.9]} 16... Bc5 {[%clk 0:00:27.2]} 17. Ng5 {[%clk 0:00:31.9]} 17... O-O {[%clk 0:00:25.7]} 18. Rhf1 {[%clk 0:00:31.3]} 18... h6 {[%clk 0:00:25]} 19. Nf3 {[%clk 0:00:29.9]} 19... Nd5 {[%clk 0:00:21.8]} 20. Ne4 {[%clk 0:00:22.2]} 20... Be7 {[%clk 0:00:16]} 21. Rfe1 {[%clk 0:00:19.3]} 21... Ne3 {[%clk 0:00:13.4]} 22. Rd3 {[%clk 0:00:18.2]} 22... Nxg2 {[%clk 0:00:12]} 23. Red1 {[%clk 0:00:15.9]} 23... Nf4 {[%clk 0:00:11]} 24. R3d2 {[%clk 0:00:14.2]} 24... Nxe2 {[%clk 0:00:10]} 25. Rxe2 {[%clk 0:00:13.8]} 25... Rfd8 {[%clk 0:00:09.2]} 26. Rde1 {[%clk 0:00:12.8]} 26... Rd3 {[%clk 0:00:06.9]} 27. Rf1 {[%clk 0:00:11.5]} 27... Rad8 {[%clk 0:00:04.5]} 28. Ne1 {[%clk 0:00:08.6]} 1-0

[Event "Live Chess"]
[Site "Chess.com"]
[Date "2011.01.28"]
[Round "-"]
[White "hipposcottimus"]
[Black "elms"]
[Result "1-0"]
[CurrentPosition "Q3k1r1/p2pPp2/1p2p1pp/2q3B1/8/8/P4PPP/4R1K1 b q -"]
[Timezone "UTC"]
[ECO "B00"]
[ECOUrl "https://www.chess.com/openings/Owens-Defense-2.d4-Bb7"]
[UTCDate "2011.01.28"]
[UTCTime "22:04:59"]
[WhiteElo "1596"]
[BlackElo "1613"]
[TimeControl "60"]
[Termination "hipposcottimus won by resignation"]
[StartTime "22:04:59"]
[EndDate "2011.01.28"]
[EndTime "22:06:19"]
[Link "https://www.chess.com/game/live/92404344"]

1. e4 {[%clk 0:01:00]} 1... b6 {[%clk 0:01:00]} 2. d4 {[%clk 0:00:58.4]} 2... Bb7 {[%clk 0:00:59.6]} 3. d5 {[%clk 0:00:58.2]} 3... g6 {[%clk 0:00:57.8]} 4. c4 {[%clk 0:00:57.9]} 4... Bg7 {[%clk 0:00:57.3]} 5. Nf3 {[%clk 0:00:56.7]} 5... c6 {[%clk 0:00:56.6]} 6. e5 {[%clk 0:00:56.4]} 6... cxd5 {[%clk 0:00:55.2]} 7. cxd5 {[%clk 0:00:55.8]} 7... e6 {[%clk 0:00:54.4]} 8. Bc4 {[%clk 0:00:55.5]} 8... Na6 {[%clk 0:00:51.6]} 9. Nc3 {[%clk 0:00:52]} 9... Nc5 {[%clk 0:00:50.7]} 10. O-O {[%clk 0:00:50.2]} 10... Ne7 {[%clk 0:00:49]} 11. b4 {[%clk 0:00:49.1]} 11... Qc7 {[%clk 0:00:47.4]} 12. bxc5 {[%clk 0:00:47.5]} 12... Qxc5 {[%clk 0:00:46.4]} 13. d6 {[%clk 0:00:47.2]} 13... Qxc4 {[%clk 0:00:45.1]} 14. dxe7 {[%clk 0:00:45.4]} 14... Qxc3 {[%clk 0:00:44.1]} 15. Bd2 {[%clk 0:00:43.6]} 15... Qc5 {[%clk 0:00:39.8]} 16. Bg5 {[%clk 0:00:33.1]} 16... Bxe5 {[%clk 0:00:35.6]} 17. Re1 {[%clk 0:00:32.7]} 17... Bxa1 {[%clk 0:00:33.8]} 18. Qxa1 {[%clk 0:00:31.2]} 18... Rg8 {[%clk 0:00:30.1]} 19. Qf6 {[%clk 0:00:27.8]} 19... Bxf3 {[%clk 0:00:27.2]} 20. Qxf3 {[%clk 0:00:25.7]} 20... h6 {[%clk 0:00:26.2]} 21. Qxa8+ {[%clk 0:00:24.5]} 1-0

[Event "Live Chess"]
[Site "Chess.com"]
[Date "2011.01.28"]
[Round "-"]
[White "knitedog"]
[Black "hipposcottimus"]
[Result "1-0"]
[CurrentPosition "r2q1rk1/2p1bppp/p1n5/1p1n2Bb/8/2PP1NNP/PPB2PP1/R2QR1K1 w - -"]
[Timezone "UTC"]
[ECO "C66"]
[ECOUrl "https://www.chess.com/openings/Ruy-Lopez-Opening-Berlin-Improved-Steinitz-Defense"]
[UTCDate "2011.01.28"]
[UTCTime "21:59:34"]
[WhiteElo "1488"]
[BlackElo "1428"]
[TimeControl "300+5"]
[Termination "knitedog won by resignation"]
[StartTime "21:59:34"]
[EndDate "2011.01.28"]
[EndTime "22:04:09"]
[Link "https://www.chess.com/game/live/92402841"]

1. e4 {[%clk 0:05:00]} 1... e5 {[%clk 0:05:00]} 2. Nf3 {[%clk 0:05:03.8]} 2... Nc6 {[%clk 0:05:04.7]} 3. Bb5 {[%clk 0:05:05.3]} 3... Nf6 {[%clk 0:05:06.9]} 4. O-O {[%clk 0:05:07.3]} 4... d6 {[%clk 0:05:09.7]} 5. c3 {[%clk 0:05:07.3]} 5... Be7 {[%clk 0:05:12.8]} 6. Re1 {[%clk 0:05:10.7]} 6... a6 {[%clk 0:05:16.4]} 7. Ba4 {[%clk 0:05:13.2]} 7... b5 {[%clk 0:05:19.9]} 8. Bb3 {[%clk 0:05:16.5]} 8... O-O {[%clk 0:05:24]} 9. d3 {[%clk 0:05:19]} 9... Na5 {[%clk 0:05:28.5]} 10. Bc2 {[%clk 0:05:22.2]} 10... Nc6 {[%clk 0:05:32.7]} 11. Be3 {[%clk 0:05:25.7]} 11... d5 {[%clk 0:05:36.6]} 12. exd5 {[%clk 0:05:28.3]} 12... Nxd5 {[%clk 0:05:39.8]} 13. Nbd2 {[%clk 0:05:30.5]} 13... Bd6 {[%clk 0:05:43.6]} 14. Nf1 {[%clk 0:04:39.7]} 14... Nf6 {[%clk 0:05:33.7]} 15. Ng3 {[%clk 0:04:28]} 15... Bg4 {[%clk 0:05:33.4]} 16. h3 {[%clk 0:04:24.7]} 16... e4 {[%clk 0:05:32.8]} 17. Nxe4 {[%clk 0:04:19.8]} 17... Bh5 {[%clk 0:05:34.2]} 18. Bg5 {[%clk 0:04:16.9]} 18... Be7 {[%clk 0:05:20.1]} 19. Ng3 {[%clk 0:03:53.3]} 19... Nd5 {[%clk 0:04:51.6]} 1-0

[Event "Live Chess"]
[Site "Chess.com"]
[Date "2011.01.28"]
[Round "-"]
[White "hipposcottimus"]
[Black "Cubik"]
[Result "0-1"]
[CurrentPosition "r1bq2k1/ppp2rpp/1b3n2/4n1B1/2B5/8/PPP1QPPP/RN2K2R b KQ -"]
[Timezone "UTC"]
[ECO "C40"]
[ECOUrl "https://www.chess.com/openings/Kings-Pawn-Opening-Kings-Knight-Busch-Gass-Gambit"]
[UTCDate "2011.01.28"]
[UTCTime "21:26:25"]
[WhiteElo "1435"]
[BlackElo "1488"]
[TimeControl "120+12"]
[Termination "Cubik won by resignation"]
[StartTime "21:26:25"]
[EndDate "2011.01.28"]
[EndTime "21:30:28"]
[Link "https://www.chess.com/game/live/92393723"]

1. e4 {[%clk 0:02:00]} 1... e5 {[%clk 0:02:00]} 2. Nf3 {[%clk 0:02:11.7]} 2... Bc5 {[%clk 0:02:03.5]} 3. Bc4 {[%clk 0:02:21]} 3... Nf6 {[%clk 0:02:00.8]} 4. Nxe5 {[%clk 0:02:29.9]} 4... O-O {[%clk 0:02:09.1]} 5. d4 {[%clk 0:02:32.7]} 5... Bb6 {[%clk 0:02:05.2]} 6. Bg5 {[%clk 0:02:39.4]} 6... d6 {[%clk 0:02:09.6]} 7. Nxf7 {[%clk 0:02:23]} 7... Rxf7 {[%clk 0:02:15.4]} 8. Qf3 {[%clk 0:02:25.5]} 8... Nbd7 {[%clk 0:02:10.8]} 9. e5 {[%clk 0:02:29.5]} 9... dxe5 {[%clk 0:02:20.1]} 10. dxe5 {[%clk 0:02:38.3]} 10... Nxe5 {[%clk 0:02:13.1]} 11. Qe2 {[%clk 0:02:01.6]} 0-1

[Event "Live Chess"]
[Site "Chess.com"]
[Date "2011.01.28"]
[Round "-"]
[White "rmondeja"]
[Black "hipposcottimus"]
[Result "1-0"]
[CurrentPosition "5r1k/R6R/7N/8/1pb5/7P/6PK/1r6 b - -"]
[Timezone "UTC"]
[ECO "C21"]
[ECOUrl "https://www.chess.com/openings/Center-Game-Accepted-Kieseritzky-Variation-3...c5-4.Bc4"]
[UTCDate "2011.01.28"]
[UTCTime "21:09:00"]
[WhiteElo "1463"]
[BlackElo "1442"]
[TimeControl "600+3"]
[Termination "rmondeja won by checkmate"]
[StartTime "21:09:00"]
[EndDate "2011.01.28"]
[EndTime "21:25:35"]
[Link "https://www.chess.com/game/live/92388711"]

1. e4 {[%clk 0:10:00]} 1... e5 {[%clk 0:10:00]} 2. d4 {[%clk 0:09:59.5]} 2... exd4 {[%clk 0:09:59.1]} 3. Nf3 {[%clk 0:10:00.8]} 3... c5 {[%clk 0:09:58.7]} 4. Bc4 {[%clk 0:09:46.8]} 4... Nf6 {[%clk 0:09:50.4]} 5. Ng5 {[%clk 0:09:39.3]} 5... d5 {[%clk 0:09:49.6]} 6. exd5 {[%clk 0:09:37.5]} 6... Bd6 {[%clk 0:09:50.5]} 7. Qe2+ {[%clk 0:09:28.8]} 7... Qe7 {[%clk 0:09:49.3]} 8. Qxe7+ {[%clk 0:09:26]} 8... Bxe7 {[%clk 0:09:51.8]} 9. d6 {[%clk 0:09:21.9]} 9... Bxd6 {[%clk 0:09:45.1]} 10. Nxf7 {[%clk 0:09:12.4]} 10... Rf8 {[%clk 0:09:39.4]} 11. Nxd6+ {[%clk 0:09:11.9]} 11... Ke7 {[%clk 0:09:40.9]} 12. Nf5+ {[%clk 0:09:06.8]} 12... Bxf5 {[%clk 0:09:39.8]} 13. O-O {[%clk 0:08:57.5]} 13... Re8 {[%clk 0:09:41.1]} 14. c3 {[%clk 0:08:40.7]} 14... d3 {[%clk 0:09:36.8]} 15. Bg5 {[%clk 0:08:21]} 15... Nd7 {[%clk 0:09:25.5]} 16. Bb5 {[%clk 0:08:11.5]} 16... Kf8 {[%clk 0:09:23.7]} 17. Bxf6 {[%clk 0:08:06.2]} 17... gxf6 {[%clk 0:09:10.1]} 18. Rd1 {[%clk 0:07:52.9]} 18... a6 {[%clk 0:08:59]} 19. Bxd3 {[%clk 0:07:48.5]} 19... Bxd3 {[%clk 0:08:59]} 20. h3 {[%clk 0:07:26.6]} 20... c4 {[%clk 0:08:56.3]} 21. Na3 {[%clk 0:07:21]} 21... b5 {[%clk 0:08:55.5]} 22. b3 {[%clk 0:07:17.2]} 22... Ne5 {[%clk 0:08:57.1]} 23. f4 {[%clk 0:07:06.5]} 23... cxb3 {[%clk 0:07:40.1]} 24. axb3 {[%clk 0:07:03.5]} 24... Rac8 {[%clk 0:07:31.9]} 25. fxe5 {[%clk 0:06:58.8]} 25... Rxc3 {[%clk 0:07:33.5]} 26. Nb1 {[%clk 0:06:48.9]} 26... Rxb3 {[%clk 0:07:34]} 27. Nd2 {[%clk 0:06:27.2]} 27... Rb2 {[%clk 0:06:46.5]} 28. Nf3 {[%clk 0:06:16.3]} 28... Be2 {[%clk 0:06:41]} 29. Re1 {[%clk 0:05:58.1]} 29... fxe5 {[%clk 0:06:33.4]} 30. Rxa6 {[%clk 0:05:45.3]} 30... Kg7 {[%clk 0:06:29]} 31. Ra7+ {[%clk 0:05:27.8]} 31... Kh8 {[%clk 0:06:22.5]} 32. Ng5 {[%clk 0:05:16.1]} 32... Bd3 {[%clk 0:06:04.1]} 33. Nf7+ {[%clk 0:05:11.5]} 33... Kg8 {[%clk 0:06:03.1]} 34. Rxe5 {[%clk 0:04:49.1]} 34... Rb1+ {[%clk 0:05:40.2]} 35. Kh2 {[%clk 0:04:46.8]} 35... Rf8 {[%clk 0:05:39.1]} 36. Nh6+ {[%clk 0:04:30.9]} 36... Kh8 {[%clk 0:05:33.4]} 37. Nf7+ {[%clk 0:04:11.9]} 37... Kg8 {[%clk 0:05:31.8]} 38. Nh6+ {[%clk 0:04:10.8]} 38... Kh8 {[%clk 0:05:31.3]} 39. Ree7 {[%clk 0:03:46.3]} 39... b4 {[%clk 0:04:45.7]} 40. Rg7 {[%clk 0:03:40.5]} 40... Bc4 {[%clk 0:04:11.5]} 41. Rxh7# {[%clk 0:03:36.9]} 1-0

[Event "Live Chess"]
[Site "Chess.com"]
[Date "2011.01.28"]
[Round "-"]
[White "loureiroo"]
[Black "hipposcottimus"]
[Result "0-1"]
[CurrentPosition "r1b2rk1/ppq2ppp/2pb4/2nP1P2/2P5/2NN4/PPP3PP/R1BQ1RK1 w - -"]
[Timezone "UTC"]
[ECO "C55"]
[ECOUrl "https://www.chess.com/openings/Italian-Game-Two-Knights-Modern-Bishops-Opening-4...d5-5.exd5"]
[UTCDate "2011.01.28"]
[UTCTime "20:05:26"]
[WhiteElo "1559"]
[BlackElo "1450"]
[TimeControl "120+10"]
[Termination "hipposcottimus won on time"]
[StartTime "20:05:26"]
[EndDate "2011.01.28"]
[EndTime "20:10:00"]
[Link "https://www.chess.com/game/live/92370131"]

1. e4 {[%clk 0:02:00]} 1... e5 {[%clk 0:02:00]} 2. Nf3 {[%clk 0:02:07.7]} 2... Nc6 {[%clk 0:02:09.7]} 3. Bc4 {[%clk 0:02:15.8]} 3... Nf6 {[%clk 0:02:19.3]} 4. d3 {[%clk 0:02:22.5]} 4... d5 {[%clk 0:02:28]} 5. exd5 {[%clk 0:02:30.1]} 5... Na5 {[%clk 0:02:37.7]} 6. Nxe5 {[%clk 0:02:33.3]} 6... Nxc4 {[%clk 0:02:42.1]} 7. dxc4 {[%clk 0:02:40.3]} 7... Bd6 {[%clk 0:02:46.3]} 8. Nd3 {[%clk 0:02:41.6]} 8... O-O {[%clk 0:02:48.2]} 9. O-O {[%clk 0:02:47]} 9... Nd7 {[%clk 0:02:40.1]} 10. Nc3 {[%clk 0:02:40.8]} 10... c6 {[%clk 0:02:39.2]} 11. f4 {[%clk 0:02:14.2]} 11... Nc5 {[%clk 0:02:22.3]} 12. f5 {[%clk 0:01:33.6]} 12... Qc7 {[%clk 0:01:58.5]} 0-1

[Event "Live Chess"]
[Site "Chess.com"]
[Date "2011.01.28"]
[Round "-"]
[White "Afshinmirzajani"]
[Black "hipposcottimus"]
[Result "0-1"]
[CurrentPosition "1k4K1/1pp2q1r/8/4P3/8/8/4n2P/Q7 w - -"]
[Timezone "UTC"]
[ECO "C29"]
[ECOUrl "https://www.chess.com/openings/Vienna-Game-Main-Line-Steinitz-Variation"]
[UTCDate "2011.01.28"]
[UTCTime "19:41:07"]
[WhiteElo "1545"]
[BlackElo "1438"]
[TimeControl "300+10"]
[Termination "hipposcottimus won by checkmate"]
[StartTime "19:41:07"]
[EndDate "2011.01.28"]
[EndTime "19:58:51"]
[Link "https://www.chess.com/game/live/92363476"]

1. e4 {[%clk 0:05:00]} 1... e5 {[%clk 0:05:00]} 2. Nc3 {[%clk 0:05:08.3]} 2... Nf6 {[%clk 0:05:07.7]} 3. f4 {[%clk 0:05:14.6]} 3... d5 {[%clk 0:05:15.9]} 4. d3 {[%clk 0:05:21.5]} 4... Bb4 {[%clk 0:05:22.4]} 5. fxe5 {[%clk 0:05:25.6]} 5... Ng4 {[%clk 0:05:27.7]} 6. Nf3 {[%clk 0:05:14.4]} 6... d4 {[%clk 0:05:31.6]} 7. a3 {[%clk 0:05:17.6]} 7... dxc3 {[%clk 0:05:34.8]} 8. axb4 {[%clk 0:05:24.4]} 8... cxb2 {[%clk 0:05:43.6]} 9. Bxb2 {[%clk 0:05:33.1]} 9... Be6 {[%clk 0:05:53.2]} 10. Be2 {[%clk 0:05:30.2]} 10... Ne3 {[%clk 0:06:00.3]} 11. Qd2 {[%clk 0:05:14.7]} 11... Nxg2+ {[%clk 0:06:05.5]} 12. Kd1 {[%clk 0:05:07.4]} 12... Nc6 {[%clk 0:05:56]} 13. Rg1 {[%clk 0:05:09.3]} 13... Nh4 {[%clk 0:05:51.2]} 14. Rxg7 {[%clk 0:05:06]} 14... Qe7 {[%clk 0:05:36.8]} 15. Qh6 {[%clk 0:03:59.6]} 15... Nxf3 {[%clk 0:05:15.1]} 16. Bxf3 {[%clk 0:04:08]} 16... O-O-O {[%clk 0:05:19.1]} 17. Rxh7 {[%clk 0:04:01.3]} 17... Rhg8 {[%clk 0:04:50.9]} 18. Ke2 {[%clk 0:03:36]} 18... Nxb4 {[%clk 0:04:48.5]} 19. Rxa7 {[%clk 0:03:27.2]} 19... Kb8 {[%clk 0:04:45.8]} 20. Ra2 {[%clk 0:03:24.3]} 20... Nxa2 {[%clk 0:04:38]} 21. Qd2 {[%clk 0:02:35.4]} 21... Bg4 {[%clk 0:04:10.2]} 22. Qa5 {[%clk 0:02:18.6]} 22... Bxf3+ {[%clk 0:04:12.4]} 23. Kxf3 {[%clk 0:02:27]} 23... Qg5 {[%clk 0:03:23.5]} 24. Rxf7 {[%clk 0:02:08.2]} 24... Qh5+ {[%clk 0:03:09.8]} 25. Ke3 {[%clk 0:02:16.7]} 25... Qxf7 {[%clk 0:03:16.1]} 26. Bd4 {[%clk 0:02:24.4]} 26... Rxd4 {[%clk 0:03:04.4]} 27. Kxd4 {[%clk 0:02:29.1]} 27... Qf2+ {[%clk 0:03:10.1]} 28. Kc4 {[%clk 0:02:35.3]} 28... Qxc2+ {[%clk 0:03:13.8]} 29. Kd5 {[%clk 0:02:37.4]} 29... Qc6+ {[%clk 0:02:47.8]} 30. Kd4 {[%clk 0:02:40.9]} 30... Nc1 {[%clk 0:02:13.5]} 31. Qa1 {[%clk 0:02:22.4]} 31... Rd8+ {[%clk 0:02:19]} 32. Ke3 {[%clk 0:02:29.4]} 32... Rxd3+ {[%clk 0:02:21.8]} 33. Kf4 {[%clk 0:02:30.7]} 33... Ne2+ {[%clk 0:02:25.1]} 34. Kf5 {[%clk 0:02:34.7]} 34... Rf3+ {[%clk 0:02:20.9]} 35. Kg4 {[%clk 0:02:39.9]} 35... Qxe4+ {[%clk 0:02:27.4]} 36. Kg5 {[%clk 0:02:41.5]} 36... Qf5+ {[%clk 0:02:22.4]} 37. Kh6 {[%clk 0:02:48.9]} 37... Rh3+ {[%clk 0:02:25.7]} 38. Kg7 {[%clk 0:02:56.3]} 38... Rh7+ {[%clk 0:02:27.1]} 39. Kg8 {[%clk 0:03:00.2]} 39... Qf7# {[%clk 0:02:36]} 0-1